fUSD/lending_fUSD_20251119
["ID","MTS","AMOUNT","RATE_DAILY","PERIOD"]
[394393591,1763525433703,-9806.59908501,0.00041408,4]
[394393592,1763525433715,-33372.20407559,0.00041408,4]
[394393593,1763525433724,-1189.27621,0.0004141,9]
[394393594,1763525433734,-1031.64203467,0.00041417,60]
[394393595,1763525433743,-506.61575954,0.00041418,120]
[394393596,1763525433755,-500.0,0.00041418,7]
[394393597,1763525433764,-3730.28,0.00041418,2]
[394393598,1763525433774,-500.0,0.00041418,2]
[394393599,1763525433784,-300.0,0.00041418,2]
[394393600,1763525433793,-500.0,0.00041418,2]
[394393601,1763525433803,-300.99786132,0.00041418,2]
[394393602,1763525433813,-607.84,0.00041418,2]
[394393603,1763525433822,-500.0,0.00041418,2]
[394393604,1763525433831,-591.90478669,0.00041418,2]
[394393605,1763525433841,-502.58141552,0.00041418,2]
[394393606,1763525433850,-167317.862247,0.00041418,4]
[394393607,1763525433859,-7121.07516796,0.00041418,4]
[394393608,1763525433868,-1031.64203467,0.00041427,60]
[394393609,1763525433878,-500.0,0.00041427,7]
[394393610,1763525433887,-500.0,0.00041427,7]
[394393611,1763525433896,-500.0,0.00041427,7]
[394393612,1763525433905,-500.0,0.00041427,2]
[394393613,1763525433914,-500.0,0.00041427,2]
[394393614,1763525433923,-500.0,0.00041427,2]
[394393615,1763525433937,-229.41729674,0.00041427,31]
[394393616,1763525433951,-176.11404838,0.00041427,31]
[394393617,1763525433960,-160.1969462,0.00041427,31]
[394393618,1763525433970,-500.0,0.00041427,31]
[394393619,1763525433980,-30818.98920646,0.00041428,2]
[394394049,1763525446253,-575.69761768,0.00040327,2]
[394394050,1763525446361,-470.5968769,0.00040327,2]
[394394051,1763525446372,-3084.13589,0.00040327,2]
[394394055,1763525460826,261.57,0.00013699,2]
[394394056,1763525471594,-261.57,0.00020187,2]
[394394057,1763525471615,-238.43,0.00026676,2]
[394394065,1763525527779,195.0,0.00029344,120]
[394394067,1763525600981,160.649175,0.00041822,120]
[394394068,1763525621474,160.649175,0.00041822,120]
[394394091,1763525712913,500.0,0.00041822,120]
[394394092,1763525713574,500.0,0.00041822,120]
[394394094,1763525714337,500.0,0.00041822,120]
[394394095,1763525714978,500.0,0.00041822,120]
[394394096,1763525715617,500.0,0.00041822,120]
[394394097,1763525716265,500.0,0.00041822,120]
[394394098,1763525716873,500.0,0.00041822,120]
[394394099,1763525717533,500.0,0.00041822,120]
[394394101,1763525718266,500.0,0.00041822,120]
[394394102,1763525718803,500.0,0.00041822,120]
[394394126,1763526201380,300.0,0.00041822,30]
[394394128,1763526414197,50000.0,0.000162,5]
[394394129,1763526414229,50000.0,0.000162,5]
[394394130,1763526414258,22177.40974312,0.000162,5]
[394394131,1763526466552,2294.03302134,0.00013,15]
[394394135,1763526566656,-189.29,0.000196,2]
[394394136,1763526566683,-141.39424046,0.00021,2]
[394394145,1763526632333,-39.60575954,0.00021,2]
[394394147,1763526632344,-23.14,0.00026676,2]
[394394148,1763526632354,-151.0,0.00032916,2]
[394394149,1763526632364,-151.0,0.00032961,2]
[394394150,1763526632375,-261.57,0.00033165,2]
[394394151,1763526632384,-340.84794466,0.00035,30]
[394394152,1763526632395,-3079.81148191,0.00035,30]
[394394153,1763526632407,-179.59057343,0.00035,30]
[394394154,1763526632416,-353.77064456,0.00037624,30]
[394394155,1763526632447,-146.22935544,0.00037624,30]
[394394156,1763526632456,-500.0,0.00038137,2]
[394394157,1763526632466,-255.36,0.0003907,30]
[394394158,1763526632475,-666.7,0.0003907,2]
[394394159,1763526632485,-2751.0,0.00039197,120]
[394394160,1763526632494,-189.29,0.000392,2]
[394394161,1763526632504,-261.57,0.00039654,2]
[394394162,1763526632513,-300.0,0.000399,14]
[394394163,1763526632523,-206.0,0.00039998,5]
[394394164,1763526632532,-8007.24682841,0.00039999,2]
[394394165,1763526632542,-16450.35466284,0.0004,2]
[394394166,1763526632551,-2300.81494301,0.0004,2]
[394394167,1763526632560,-186.46505556,0.0004,30]
[394394168,1763526632570,-1007.92064577,0.0004,120]
[394394169,1763526632580,-7300.79785155,0.0004,120]
[394394170,1763526632589,-157.01,0.00040051,2]
[394394171,1763526632598,-200.0,0.0004012,2]
[394394172,1763526632608,-1717.25499198,0.00040122,15]
[394394173,1763526632617,-227.46288222,0.00040206,7]
[394394174,1763526632626,-411.90712865,0.00040206,2]
[394394175,1763526632635,-500.0,0.00040206,31]
[394394176,1763526632645,-157.32755515,0.00040206,31]
[394394177,1763526632654,-250.6160495,0.00040206,2]
[394394178,1763526632663,-500.0,0.00040206,31]
[394394179,1763526632673,-500.0,0.00040206,31]
[394394180,1763526632683,-500.0,0.00040206,31]
[394394181,1763526632692,-500.0,0.00040206,31]
[394394182,1763526632702,-500.0,0.00040206,31]
[394394184,1763526632711,-500.0,0.00040206,31]
[394394186,1763526632720,-500.0,0.00040206,31]
[394394189,1763526632730,-500.0,0.00040206,31]
[394394191,1763526632739,-500.0,0.00040206,31]
[394394193,1763526632748,-500.0,0.00040206,31]
[394394195,1763526632758,-500.0,0.00040206,31]
[394394197,1763526632767,-500.0,0.00040206,31]
[394394199,1763526632776,-500.0,0.00040206,31]
[394394201,1763526632786,-500.0,0.00040206,31]
[394394202,1763526632794,-500.0,0.00040206,31]
[394394203,1763526632805,-500.0,0.00040206,31]
[394394204,1763526632814,-500.0,0.00040206,31]
[394394205,1763526632824,-500.0,0.00040206,31]
[394394206,1763526632833,-500.0,0.00040206,31]
[394394207,1763526632844,-500.0,0.00040206,31]
[394394208,1763526632853,-500.0,0.00040206,31]
[394394209,1763526632866,-500.0,0.00040206,31]
[394394210,1763526632876,-500.0,0.00040206,31]
[394394211,1763526632886,-500.0,0.00040206,31]
[394394212,1763526632895,-500.0,0.00040206,31]
[394394213,1763526632905,-500.0,0.00040206,31]
[394394214,1763526632915,-500.0,0.00040206,31]
[394394215,1763526632925,-500.0,0.00040206,31]
[394394216,1763526632934,-500.0,0.00040206,31]
[394394217,1763526632945,-500.0,0.00040206,31]
[394394218,1763526632954,-500.0,0.00040206,31]
[394394219,1763526632963,-500.0,0.00040206,31]
[394394220,1763526632973,-500.0,0.00040206,31]
[394394221,1763526632982,-500.0,0.00040206,31]
[394394222,1763526632992,-500.0,0.00040206,31]
[394394223,1763526633002,-500.0,0.00040206,31]
[394394224,1763526633012,-500.0,0.00040206,31]
[394394225,1763526633022,-500.0,0.00040206,31]
[394394226,1763526633032,-500.0,0.00040206,31]
[394394227,1763526633041,-500.0,0.00040206,31]
[394394228,1763526633050,-500.0,0.00040206,31]
[394394229,1763526633060,-500.0,0.00040206,31]
[394394230,1763526633070,-500.0,0.00040206,31]
[394394231,1763526633080,-500.0,0.00040206,31]
[394394232,1763526633089,-320.92273063,0.00040206,31]
[394394233,1763526633102,-179.07726937,0.00040206,31]
[394394234,1763526633112,-255.22603908,0.00040206,31]
[394394235,1763526633123,-244.77396092,0.00040206,31]
[394394236,1763526633132,-500.0,0.00040206,31]
[394394237,1763526633142,-500.0,0.00040206,31]
[394394238,1763526633155,-500.0,0.00040206,31]
[394394239,1763526633165,-500.0,0.00040206,31]
[394394240,1763526633176,-500.0,0.00040206,31]
[394394241,1763526633186,-500.0,0.00040206,31]
[394394242,1763526633195,-500.0,0.00040206,31]
[394394243,1763526633204,-500.0,0.00040206,31]
[394394244,1763526633213,-500.0,0.00040206,31]
[394394245,1763526633223,-500.0,0.00040206,31]
[394394246,1763526633232,-500.0,0.00040206,31]
[394394247,1763526633241,-500.0,0.00040206,31]
[394394248,1763526633250,-500.0,0.00040206,31]
[394394249,1763526633259,-500.0,0.00040206,31]
[394394250,1763526633268,-500.0,0.00040206,31]
[394394251,1763526633278,-500.0,0.00040206,31]
[394394252,1763526633287,-500.0,0.00040206,31]
[394394253,1763526633300,-500.0,0.00040206,31]
[394394254,1763526633310,-500.0,0.00040206,31]
[394394255,1763526633320,-500.0,0.00040206,31]
[394394256,1763526633330,-500.0,0.00040206,31]
[394394257,1763526633340,-500.0,0.00040206,31]
[394394258,1763526633349,-500.0,0.00040206,31]
[394394259,1763526633359,-500.0,0.00040206,31]
[394394260,1763526633369,-500.0,0.00040206,31]
[394394261,1763526633381,-500.0,0.00040206,31]
[394394262,1763526633391,-500.0,0.00040206,31]
[394394263,1763526633401,-500.0,0.00040206,31]
[394394264,1763526633410,-500.0,0.00040206,31]
[394394265,1763526633419,-500.0,0.00040206,31]
[394394266,1763526633436,-552.96441488,0.00040206,31]
[394394267,1763526633445,-500.0,0.00040206,31]
[394394268,1763526633455,-500.0,0.00040206,31]
[394394269,1763526633465,-500.0,0.00040206,31]
[394394270,1763526633474,-283.66271277,0.00040206,31]
[394394271,1763526633483,-68183.1349644,0.00040207,4]
[394394272,1763526633498,-253.49999,0.00040207,4]
[394394273,1763526638244,-964.0942,0.00040207,4]
[394394274,1763526638303,-2711.53140201,0.00040207,4]
[394394275,1763526638476,-328.31959918,0.00040207,4]
[394394469,1763526640474,-1050.11134614,0.00040207,4]
[394394471,1763526640485,-1138.20285655,0.00040207,4]
[394394473,1763526640496,-1379.49366373,0.00040207,4]
[394394476,1763526640514,-12289.42739159,0.00040207,4]
[394394809,1763526643696,-151.0,0.00033455,2]
[394394811,1763526643706,-3153.8,0.00040207,4]
[394395019,1763526646338,-33621.82147152,0.00040207,4]
[394395021,1763526646505,-500.4799978,0.00040207,4]
[394395022,1763526646517,-3209.47777559,0.00040207,4]
[394395026,1763526647001,-753.01482349,0.00040207,4]
[394395027,1763526647010,-462.13786234,0.00040216,31]
[394395028,1763526647019,-160.59210772,0.00040216,31]
[394395029,1763526647029,-1909.69200645,0.00040217,2]
[394395030,1763526647040,-378.11099853,0.00040217,2]
[394395031,1763526647111,-701.36344187,0.00040217,2]
[394395037,1763526665741,500.0,0.00041822,30]
[394395038,1763526666362,500.0,0.00041822,30]
[394395039,1763526666968,500.0,0.00041822,30]
[394395040,1763526667579,500.0,0.00041822,30]
[394395041,1763526668178,500.0,0.00041822,30]
[394395042,1763526668803,500.0,0.00041822,30]
[394395043,1763526669430,500.0,0.00041822,30]
[394395044,1763526670027,500.0,0.00041822,30]
[394395045,1763526670688,500.0,0.00041822,30]
[394395046,1763526671336,500.0,0.00041822,30]
[394395047,1763526683412,193.51588791,0.00017,2]
[394395048,1763526685255,-56.48411209,0.00017,2]
[394395058,1763527038825,302.14189459,0.00041822,30]
[394395063,1763527086902,195.0,0.000187,120]
[394395064,1763527087468,300.0,0.000187,120]
[394395068,1763527211561,-164.5,0.00017,2]
[394395069,1763527211584,-192.87609774,0.00017,2]
[394395076,1763527259833,305.64552755,0.00041826,30]
[394395077,1763527277622,-1649.12390226,0.00017,2]
[394395078,1763527277645,-198.44081869,0.000186,2]
[394395079,1763527277669,-152.43527905,0.000187,2]
[394395081,1763527313355,500.0,0.00041826,120]
[394395082,1763527313588,500.0,0.00041826,120]
[394395083,1763527313850,500.0,0.00041826,120]
[394395084,1763527314084,500.0,0.00041826,120]
[394395085,1763527314330,500.0,0.00041826,120]
[394395086,1763527314617,500.0,0.00041826,120]
[394395087,1763527314931,500.0,0.00041826,120]
[394395088,1763527315168,500.0,0.00041826,120]
[394395089,1763527315430,500.0,0.00041826,120]
[394395090,1763527315910,500.0,0.00041826,120]
[394395091,1763527316154,500.0,0.00041826,120]
[394395092,1763527316432,500.0,0.00041826,120]
[394395093,1763527316674,500.0,0.00041826,120]
[394395094,1763527316924,500.0,0.00041826,120]
[394395095,1763527316954,-97.56472095,0.000187,2]
[394395096,1763527316981,-195.0,0.000187,2]
[394395097,1763527317184,500.0,0.00041826,120]
[394395098,1763527317427,500.0,0.00041826,120]
[394395099,1763527317698,321.46137027,0.00041826,120]
[394395198,1763527831655,-190.53,0.00018064,2]
[394395199,1763527831665,-797.0,0.00033532,2]
[394395200,1763527831675,-500.0,0.00035,2]
[394395201,1763527831687,-350.0,0.00037,30]
[394395202,1763527831696,-163.25948278,0.00037627,7]
[394395203,1763527831705,-157.5149362,0.00037627,7]
[394395204,1763527831715,-165.97531298,0.00037627,7]
[394395205,1763527831725,-500.0,0.00037628,30]
[394395206,1763527831735,-500.0,0.00037628,30]
[394395207,1763527831745,-501.16559208,0.00037628,30]
[394395208,1763527831754,-400.0,0.00038449,5]
[394395209,1763527831764,-1600.0,0.00038449,5]
[394395210,1763527831778,-300.0,0.00038449,5]
[394395211,1763527831789,-500.0,0.0003845,5]
[394395212,1763527831800,-500.0,0.0003845,2]
[394395213,1763527831811,-491.81969162,0.0003845,5]
[394395214,1763527831820,-500.0,0.0003845,5]
[394395215,1763527831830,-500.0,0.000385,5]
[394395216,1763527831840,-500.0,0.000385,5]
[394395217,1763527831849,-500.0,0.000385,3]
[394395218,1763527831859,-3013.58,0.00038563,2]
[394395219,1763527831868,-204.0,0.00038953,7]
[394395221,1763527831878,-1098.54,0.00038966,120]
[394395223,1763527831888,-150.0,0.00039074,2]
[394395225,1763527831899,-204.0,0.00039122,2]
[394395228,1763527831910,-1000.0,0.00039156,2]
[394395230,1763527831922,-5000.0,0.0003917,120]
[394395232,1763527831932,-3312.32248393,0.00039201,2]
[394395233,1763527831944,-414.79751607,0.00039201,2]
[394395234,1763527831954,-422.82854141,0.00039202,2]
[394395235,1763527831966,-254.160016,0.00039202,2]
[394395236,1763527831977,-879.87463164,0.00039202,2]
[394395239,1763527831990,-295.55681095,0.00039202,2]
[394395241,1763527832000,-250.0,0.00039277,2]
[394395243,1763527832011,-860.0,0.00039483,4]
[394395245,1763527832021,-6025.72,0.00039484,2]
[394395247,1763527832032,-10114.37,0.00039484,2]
[394395248,1763527832042,-168.0,0.00039583,7]
[394395249,1763527832053,-168.0,0.00039655,2]
[394395250,1763527832063,-204.0,0.00039729,120]
[394395251,1763527832074,-2567.131836,0.0003978,2]
[394395252,1763527832087,-6217.7158759,0.0003978,2]
[394395253,1763527832099,-374.1824954,0.0003978,2]
[394395254,1763527832110,-200.0,0.000398,14]
[394395255,1763527832120,-168.0,0.00039848,2]
[394395256,1763527832129,-500.0,0.000399,14]
[394395257,1763527832140,-17398.02452978,0.00039991,15]
[394395258,1763527832151,-270.37,0.0004,120]
[394395259,1763527832161,-213.9179736,0.00040062,2]
[394395260,1763527832172,-339.87021823,0.00040062,31]
[394395261,1763527832182,-500.0,0.00040062,7]
[394395262,1763527832192,-500.0,0.00040062,31]
[394395263,1763527832202,-500.0,0.00040062,31]
[394395264,1763527832212,-500.0,0.00040062,31]
[394395265,1763527832222,-500.0,0.00040062,31]
[394395266,1763527832232,-500.0,0.00040062,31]
[394395267,1763527832242,-500.0,0.00040062,31]
[394395268,1763527832252,-299.04793259,0.00040062,31]
[394395269,1763527832262,-500.0,0.00040062,31]
[394395270,1763527832272,-500.0,0.00040062,31]
[394395271,1763527832282,-500.0,0.00040062,31]
[394395272,1763527832292,-500.0,0.00040062,31]
[394395273,1763527832302,-500.0,0.00040062,31]
[394395274,1763527832312,-500.0,0.00040062,31]
[394395275,1763527832322,-500.0,0.00040062,31]
[394395276,1763527832332,-500.0,0.00040062,31]
[394395277,1763527832342,-500.0,0.00040062,31]
[394395278,1763527832352,-500.0,0.00040062,31]
[394395279,1763527832362,-500.0,0.00040062,31]
[394395280,1763527832372,-500.0,0.00040062,31]
[394395281,1763527832382,-500.0,0.00040062,31]
[394395282,1763527832391,-500.0,0.00040062,31]
[394395283,1763527832401,-500.0,0.00040062,31]
[394395284,1763527832411,-500.0,0.00040062,31]
[394395285,1763527832421,-500.0,0.00040062,31]
[394395286,1763527832431,-500.0,0.00040062,31]
[394395287,1763527832441,-500.0,0.00040062,31]
[394395288,1763527832452,-500.0,0.00040062,31]
[394395289,1763527832462,-500.0,0.00040062,31]
[394395290,1763527832472,-500.0,0.00040062,31]
[394395291,1763527832483,-500.0,0.00040062,31]
[394395292,1763527832493,-500.0,0.00040062,31]
[394395293,1763527832503,-500.0,0.00040062,31]
[394395294,1763527832514,-500.0,0.00040062,31]
[394395295,1763527832525,-500.0,0.00040062,31]
[394395296,1763527832534,-500.0,0.00040062,31]
[394395297,1763527832544,-500.0,0.00040062,31]
[394395298,1763527832555,-200.0,0.00040062,31]
[394395299,1763527832565,-500.0,0.00040062,31]
[394395300,1763527832575,-500.0,0.00040062,31]
[394395301,1763527832586,-500.0,0.00040062,31]
[394395302,1763527832596,-500.0,0.00040062,31]
[394395303,1763527832606,-500.0,0.00040062,31]
[394395304,1763527832619,-500.0,0.00040062,31]
[394395305,1763527832629,-5540.78312362,0.00040063,4]
[394395306,1763527832791,-124330.26043038,0.00040063,4]
[394395307,1763527832860,-648.15949378,0.00040072,31]
[394395308,1763527832870,-201.02232494,0.00040072,31]
[394395309,1763527832879,-181.58426733,0.00040072,31]
[394395310,1763527832889,-500.0,0.00040072,2]
[394395311,1763527832898,-500.0,0.00040072,2]
[394395312,1763527832907,-500.0,0.00040072,2]
[394395313,1763527832916,-28429.04316847,0.00040073,2]
[394395314,1763527832928,-1192.2058206,0.00040073,2]
[394395316,1763527837438,-625.89475458,0.00040073,2]
[394395317,1763527837493,-2879.35656815,0.00040073,2]
[394395318,1763527837505,-33175.20191469,0.00040073,2]
[394395319,1763527837550,-749.9999998,0.00040073,2]
[394395320,1763527837610,-1811.16,0.00040073,2]
[394395324,1763527839487,-1930.73770265,0.00040073,2]
[394395326,1763527839586,-2455.1335555,0.00040073,2]
[394395327,1763527839599,-634.59235,0.00040073,2]
[394395328,1763527843959,-1108.28618409,0.00040073,2]
[394395330,1763527844235,-504336.49293023,0.00040073,2]
[394395331,1763527844247,-1287.35333491,0.00040073,2]
[394395345,1763527845648,-272.35000053,0.00040073,2]
[394395346,1763527845920,-3000.0,0.00040073,2]
[394395381,1763528790261,11142.0,0.00041828,30]
[394395386,1763528974017,196.17,0.00013699,2]
[394395388,1763528983230,-196.17,0.00020187,2]
[394395389,1763528983251,-153.54153231,0.00026676,2]
[394395396,1763529031764,-42.62846769,0.00026676,2]
[394395397,1763529031773,-196.17,0.00033165,2]
[394395398,1763529031783,-177.22059077,0.00035544,2]
[394395399,1763529031908,-209.36418828,0.00035544,2]
[394395400,1763529031964,-63.33675326,0.00035644,2]
[394395401,1763529031975,-903.60764366,0.00035644,2]
[394395402,1763529031987,-2126.25560308,0.00035644,2]
[394395403,1763529031996,-490.42552114,0.00035644,2]
[394395404,1763529032006,-166.66,0.00036181,30]
[394395405,1763529032015,-640.0,0.00036872,3]
[394395406,1763529032025,-1871.0,0.00036873,2]
[394395407,1763529032035,-166.66,0.00036943,30]
[394395408,1763529032046,-166.66,0.00037705,30]
[394395409,1763529032056,-341.0,0.00037721,3]
[394395410,1763529032065,-725.0,0.00037723,7]
[394395411,1763529032074,-157.01,0.00037927,2]
[394395412,1763529032084,-152.0,0.0003793,3]
[394395413,1763529032093,-156.01,0.00038037,2]
[394395414,1763529032102,-500.0,0.00038082,2]
[394395415,1763529032111,-200.0,0.00038244,2]
[394395416,1763529032120,-999.0,0.00038298,3]
[394395417,1763529032129,-1000.0,0.00038303,2]
[394395418,1763529032139,-150.99,0.00038303,2]
[394395419,1763529032148,-150.0,0.0003836,2]
[394395420,1763529032157,-2000.0,0.000384,2]
[394395422,1763529032166,-166.66,0.00038467,30]
[394395425,1763529032187,-725.0,0.00038581,120]
[394395426,1763529032197,-266.0,0.00038615,7]
[394395427,1763529032207,-860.0,0.00038677,4]
[394395428,1763529032216,-6025.72,0.00038678,2]
[394395429,1763529032226,-12205.24,0.00038678,2]
[394395430,1763529032236,-266.0,0.00038703,2]
[394395431,1763529032246,-725.0,0.00038717,2]
[394395432,1763529032256,-266.0,0.00038738,120]
[394395433,1763529032265,-266.0,0.00038906,2]
[394395434,1763529032275,-284.15910665,0.00039,2]
[394395435,1763529032284,-242.748,0.0003902,53]
[394395436,1763529032293,-752.935,0.0003902,53]
[394395437,1763529032303,-250.0,0.00039098,2]
[394395438,1763529032313,-195.0,0.00039098,120]
[394395440,1763529032323,-300.0,0.00039098,119]
[394395442,1763529032332,-166.66,0.00039228,30]
[394395444,1763529032341,-156.01,0.00039463,2]
[394395447,1763529032352,-934.0,0.00039564,7]
[394395449,1763529032362,-162.6,0.00039598,2]
[394395451,1763529032371,-196.17,0.00039654,2]
[394395453,1763529032380,-200.0,0.000397,14]
[394395455,1763529032390,-200.0,0.000397,14]
[394395456,1763529032399,-936.0,0.00039764,7]
[394395457,1763529032408,-500.0,0.000398,14]
[394395458,1763529032418,-500.0,0.000398,14]
[394395459,1763529032427,-2679.1774,0.00039836,10]
[394395460,1763529032438,-6089.44681066,0.00039851,15]
[394395461,1763529032448,-17420.10620978,0.00039861,2]
[394395462,1763529032457,-800.0,0.000399,14]
[394395463,1763529032466,-800.0,0.000399,14]
[394395464,1763529032476,-700.83,0.00039918,2]
[394395465,1763529032485,-478.61,0.00039918,2]
[394395466,1763529032494,-478.61,0.00039918,2]
[394395467,1763529032504,-700.83,0.00039918,2]
[394395468,1763529032513,-700.83,0.00039918,2]
[394395469,1763529032522,-478.61,0.00039918,2]
[394395470,1763529032533,-478.61,0.00039918,2]
[394395471,1763529032543,-700.83,0.00039918,2]
[394395472,1763529032552,-700.83,0.00039918,2]
[394395473,1763529032562,-700.83,0.00039918,2]
[394395474,1763529032571,-1605.0,0.00039941,2]
[394395475,1763529032580,-561.0,0.00039941,2]
[394395476,1763529032590,-6492.0,0.00039941,2]
[394395477,1763529032599,-507.30186684,0.00039949,2]
[394395478,1763529032608,-339.87021823,0.00039949,31]
[394395479,1763529032617,-500.0,0.00039949,31]
[394395480,1763529032627,-500.0,0.00039949,31]
[394395481,1763529032636,-500.0,0.00039949,31]
[394395482,1763529032645,-500.0,0.00039949,7]
[394395483,1763529032654,-500.0,0.00039949,31]
[394395484,1763529032664,-500.0,0.00039949,31]
[394395485,1763529032673,-500.0,0.00039949,31]
[394395486,1763529032682,-500.0,0.00039949,31]
[394395487,1763529032692,-500.0,0.00039949,31]
[394395488,1763529032701,-500.0,0.00039949,31]
[394395489,1763529032710,-500.0,0.00039949,31]
[394395490,1763529032719,-500.0,0.00039949,31]
[394395491,1763529032728,-500.0,0.00039949,31]
[394395492,1763529032738,-500.0,0.00039949,31]
[394395493,1763529032748,-500.0,0.00039949,31]
[394395494,1763529032757,-500.0,0.00039949,31]
[394395495,1763529032766,-500.0,0.00039949,31]
[394395496,1763529032775,-500.0,0.00039949,31]
[394395497,1763529032784,-464.50339181,0.00039949,31]
[394395498,1763529032793,-500.0,0.00039949,31]
[394395499,1763529032803,-500.0,0.00039949,31]
[394395500,1763529032812,-500.0,0.00039949,31]
[394395501,1763529032821,-500.0,0.00039949,31]
[394395502,1763529032830,-500.0,0.00039949,31]
[394395503,1763529032840,-500.0,0.00039949,31]
[394395504,1763529032848,-500.0,0.00039949,31]
[394395505,1763529032858,-500.0,0.00039949,31]
[394395506,1763529032867,-500.0,0.00039949,31]
[394395507,1763529032876,-500.0,0.00039949,31]
[394395508,1763529032885,-500.0,0.00039949,31]
[394395509,1763529032895,-500.0,0.00039949,31]
[394395510,1763529032905,-500.0,0.00039949,31]
[394395511,1763529032914,-105.6677489,0.00039949,31]
[394395512,1763529032927,-394.3322511,0.00039949,31]
[394395513,1763529032936,-500.0,0.00039949,31]
[394395514,1763529032945,-500.0,0.00039949,31]
[394395515,1763529032955,-500.0,0.00039949,31]
[394395516,1763529032968,-500.0,0.00039949,31]
[394395517,1763529032977,-263.92574189,0.00039949,31]
[394395518,1763529032988,-236.07425811,0.00039949,31]
[394395519,1763529032998,-500.0,0.00039949,31]
[394395520,1763529033008,-50.12604802,0.00039949,31]
[394395521,1763529033019,-449.87395198,0.00039949,31]
[394395522,1763529033028,-240.18194279,0.00039949,31]
[394395523,1763529033041,-259.81805721,0.00039949,31]
[394395524,1763529033049,-97.21832999,0.00039949,31]
[394395525,1763529033060,-402.78167001,0.00039949,31]
[394395526,1763529033070,-500.0,0.00039949,31]
[394395527,1763529033080,-500.0,0.00039949,31]
[394395528,1763529033089,-500.0,0.00039949,31]
[394395529,1763529033099,-500.0,0.00039949,31]
[394395530,1763529033108,-500.0,0.00039949,31]
[394395531,1763529033117,-500.0,0.00039949,31]
[394395532,1763529033127,-500.0,0.00039949,31]
[394395533,1763529033136,-500.0,0.00039949,31]
[394395534,1763529033145,-500.0,0.00039949,31]
[394395535,1763529033155,-500.0,0.00039949,31]
[394395536,1763529033164,-500.0,0.00039949,31]
[394395537,1763529033174,-500.0,0.00039949,31]
[394395538,1763529033185,-500.0,0.00039949,31]
[394395539,1763529033195,-500.0,0.00039949,31]
[394395540,1763529033209,-500.0,0.00039949,31]
[394395541,1763529033218,-500.0,0.00039949,31]
[394395542,1763529033228,-500.0,0.00039949,31]
[394395543,1763529033238,-500.0,0.00039949,31]
[394395544,1763529033247,-500.0,0.00039949,31]
[394395545,1763529033256,-500.0,0.00039949,31]
[394395546,1763529033265,-500.0,0.00039949,31]
[394395547,1763529033275,-500.0,0.00039949,31]
[394395548,1763529033285,-500.0,0.00039949,31]
[394395549,1763529033294,-500.0,0.00039949,31]
[394395550,1763529033303,-500.0,0.00039949,31]
[394395551,1763529033313,-500.0,0.00039949,31]
[394395552,1763529033322,-500.0,0.00039949,31]
[394395553,1763529033331,-500.0,0.00039949,31]
[394395554,1763529033340,-522.3089123,0.00039949,31]
[394395555,1763529033350,-500.0,0.00039949,31]
[394395556,1763529033360,-500.0,0.00039949,31]